bitfinex-derivatives/quotes_ETHF0:USTF0_20260113
["timestamp","ask_amount","ask_price","bid_price","bid_amount"]
[1768283049461,0.00227204,3137.1,3136.6,1.08684579]
[1768283050360,1.406,3137.7,3137.0,1.08684579]
[1768283051254,1.406,3137.7,3137.0,1.09162697]
[1768283051456,1.40867205,3137.7,3137.0,1.09389103]
[1768283051853,0.00267205,3137.7,3137.0,0.00704524]
[1768283052060,0.00267205,3137.7,3137.1,1.08684579]
[1768283056163,0.00267205,3137.7,3137.0,0.00704524]
[1768283056855,0.00267205,3137.7,3137.1,1.08684579]
[1768283057364,0.00267205,3137.7,3137.3,1.08684579]
[1768283058362,1.08684579,3138.3,3137.5,1.08684579]
[1768283059258,1.08914271,3138.3,3137.5,1.08684579]
[1768283060461,1.08684579,3138.1,3137.3,1.08684579]
[1768283060654,4.41628278,3138.1,3137.0,0.00704524]
[1768283060970,1.08684579,3137.8,3137.0,0.00704524]
[1768283062653,3.32943699,3138.1,3137.3,1.08684579]
[1768283064164,3.32943699,3138.1,3137.0,0.00704524]
[1768283064369,1.08684579,3138.0,3137.1,1.08684579]
[1768283066572,4.41628278,3137.8,3137.0,0.00704524]
[1768283068270,4.41628278,3137.8,3137.0,1.09389103]
[1768283068570,4.41628278,3137.4,3137.0,0.00704524]
[1768283068770,3.32943699,3137.1,3135.7,4.1438101]
[1768283068969,1.08684579,3137.0,3136.1,1.08684579]
[1768283069364,3.32943699,3137.1,3135.9,1.08599429]
[1768283069667,3.32943699,3137.1,3135.9,1.03175849]
[1768283069971,3.32943699,3137.1,3135.9,1.03529862]
[1768283071965,3.32943699,3137.1,3135.9,0.00354013]
[1768283072172,3.32943699,3137.1,3136.0,1.08599429]
[1768283073865,4.41543128,3137.1,3135.9,0.00354013]
[1768283074066,3.32943699,3137.0,3135.9,0.00354013]
[1768283074473,3.32943699,3137.0,3136.0,1.08599429]
[1768283074665,3.66169663,3137.4,3136.2,1.08599429]
[1768283075865,3.66169663,3137.4,3136.0,1.08599429]
[1768283079773,3.66169663,3137.4,3135.9,0.00354013]
[1768283079972,3.66169663,3137.4,3136.2,1.08599429]
[1768283087282,3.66169663,3137.4,3135.9,0.00354013]
[1768283087283,3.66169663,3137.4,3136.4,1.08599429]
[1768283089382,3.66169663,3137.7,3136.6,1.08599429]
[1768283089682,3.66169663,3137.7,3136.8,1.08599429]
[1768283093677,3.66169663,3137.7,3136.1,3.03860384]
[1768283093886,3.66169663,3137.7,3136.5,1.08599429]
[1768283096484,3.66169663,3137.7,3136.3,1.385]
[1768283097991,3.66169663,3137.7,3136.5,1.08599429]
[1768283101282,4.59629692,3138.3,3136.1,3.03860384]
[1768283101283,3.66169663,3137.5,3136.1,3.03860384]
[1768283101483,3.66169663,3137.5,3136.2,2.47099429]
[1768283101984,3.66169663,3137.5,3136.1,0.15962]
[1768283102185,3.66169663,3137.5,3136.1,2.63161429]
[1768283102585,0.00478118,3137.1,3136.1,2.63161429]
[1768283103083,0.00478118,3137.1,3136.2,1.08599429]
[1768283103488,0.00478118,3137.1,3135.9,2.88252397]
[1768283103489,3.66647781,3137.1,3135.9,2.88252397]
[1768283103688,3.66647781,3137.1,3136.0,1.08599429]
[1768283103984,3.66647781,3137.1,3136.2,1.08599429]
[1768283104793,0.00478118,3137.1,3136.4,1.08599429]
[1768283105884,0.00478118,3137.1,3136.2,1.08599429]
[1768283108397,3.49303851,3137.1,3136.2,1.08599429]
[1768283110300,0.00478118,3137.1,3136.2,1.08599429]
[1768283111904,3.48825733,3137.5,3136.7,1.08599429]
[1768283113610,3.48825733,3137.5,3136.3,0.00478118]
[1768283113908,3.57153344,3138.1,3136.8,1.08599429]
[1768283114107,3.57153344,3138.0,3136.8,1.08599429]
[1768283115309,3.57153344,3137.9,3136.5,1.08599429]
[1768283116014,3.57153344,3137.9,3136.3,2.88376502]
[1768283116207,3.57153344,3137.9,3136.5,1.08599429]
[1768283116708,3.57153344,3137.6,3136.3,0.00478118]
[1768283127722,3.57153344,3137.3,3136.3,0.00478118]
[1768283128035,3.57153344,3137.0,3136.3,0.00478118]
[1768283135617,3.57153344,3137.0,3135.9,0.00354013]
[1768283135817,3.32757857,3136.6,3135.9,0.00354013]
[1768283136217,3.32757857,3136.6,3136.1,1.08596595]
[1768283136722,4.41354452,3137.0,3136.1,1.08596595]
[1768283136922,3.32757857,3136.9,3136.1,1.08596595]
[1768283139320,3.32757857,3137.3,3135.9,0.00354013]
[1768283139525,1.08596595,3137.2,3136.3,1.08596595]
[1768283139822,3.32757857,3137.1,3136.3,1.08596595]
[1768283141925,3.32757857,3137.5,3136.7,1.08596595]
[1768283142322,3.32757857,3137.5,3136.5,1.08596595]
[1768283142625,3.32757857,3137.3,3136.3,1.08596595]
[1768283143218,3.32757857,3137.3,3136.5,1.08596595]
[1768283143728,3.32757857,3137.3,3136.7,1.08596595]
[1768283144824,3.32757857,3137.3,3136.6,1.08596595]
[1768283147425,3.32757857,3137.3,3136.3,1.08596595]
[1768283147631,3.32757857,3137.2,3136.3,1.08596595]
[1768283148129,3.32757857,3137.2,3136.5,1.08596595]
[1768283148330,3.32757857,3137.2,3136.3,1.08596595]
[1768283149022,3.32757857,3137.1,3136.3,1.08596595]
[1768283151730,3.32757857,3137.1,3136.4,1.08596595]
[1768283152129,3.32757857,3137.1,3136.6,1.08596595]
[1768283152332,3.32757857,3137.1,3135.9,0.00354013]
[1768283152543,3.32757857,3137.1,3136.4,1.08596595]
[1768283158644,3.32757857,3137.1,3135.9,4.27052397]
[1768283158845,3.32757857,3137.1,3136.5,1.08596595]
[1768283159342,0.00478118,3137.4,3136.5,1.08596595]
[1768283159547,0.00478118,3137.4,3136.7,1.08596595]
[1768283159939,3.33235975,3137.4,3136.7,1.08596595]
[1768283164950,0.00478118,3137.4,3136.9,1.08596595]
[1768283165154,0.00478118,3137.4,3136.8,1.08596595]
[1768283169371,0.00478118,3137.4,3137.2,1.08596595]
[1768283169663,3.49051836,3137.6,3136.8,0.00478118]
[1768283169864,1.08596595,3137.5,3136.8,0.00478118]
[1768283170060,1.08596595,3136.9,3136.2,2.87898384]
[1768283170262,1.08596595,3137.1,3136.2,1.08596595]
[1768283171156,1.08596595,3137.1,3136.3,1.08596595]
[1768283174370,4.57648431,3137.2,3136.3,1.08596595]
[1768283175865,3.52523653,3137.1,3136.2,1.08596595]
[1768283176066,3.52523653,3137.1,3135.9,2.88252397]
[1768283176262,3.52523653,3137.1,3136.2,1.08596595]
[1768283176768,3.52523653,3137.8,3136.9,1.08596595]
[1768283176971,3.52523653,3137.5,3136.7,1.08596595]
[1768283177274,3.52523653,3137.5,3136.5,1.08596595]
[1768283177962,0.00478118,3137.3,3136.5,1.08596595]
[1768283180566,0.00478118,3137.3,3136.7,1.08596595]
[1768283184771,0.00478118,3137.3,3136.9,1.08596595]
[1768283185076,3.52523653,3137.9,3137.1,1.08596595]
[1768283185263,3.52523653,3137.9,3136.7,0.00478118]
[1768283185264,3.52523653,3137.7,3136.7,0.00478118]
[1768283185573,2.38157178,3137.8,3136.7,0.00478118]
[1768283185574,3.52523653,3137.5,3136.7,0.00478118]
[1768283186569,3.52523653,3137.5,3136.7,1.09074713]
[1768283186766,3.52523653,3137.9,3136.9,1.08596595]
[1768283186975,1.95120006,3137.8,3136.9,1.08596595]
[1768283187279,1.08596595,3137.8,3136.9,1.08596595]
[1768283187578,4.61120248,3137.8,3136.9,1.08596595]
[1768283190880,4.61120248,3137.8,3136.8,1.08596595]
[1768283193277,3.52523653,3137.8,3136.7,0.00478118]
[1768283193483,3.52523653,3137.7,3136.7,0.00478118]
[1768283195273,4.86014255,3138.1,3136.9,1.08554257]
[1768283196479,3.46214255,3138.0,3136.9,1.08554257]
[1768283211093,0.00229692,3138.3,3137.2,1.08554257]
[1768283211499,3.46443947,3138.3,3137.2,1.08554257]
[1768283214899,3.46443947,3138.3,3137.1,1.08554257]
[1768283215306,3.46443947,3138.3,3136.7,6.35022594]
[1768283215498,3.46443947,3138.3,3137.1,1.08554257]
[1768283219308,3.46443947,3138.3,3136.8,1.08554257]
[1768283220207,3.46443947,3138.3,3137.1,1.08554257]
[1768283227112,3.46443947,3138.3,3137.3,1.08554257]
[1768283230109,3.46443947,3138.3,3136.8,3.96452641]
[1768283230316,3.63560856,3137.9,3136.8,4.27498384]
[1768283230615,3.63560856,3137.9,3136.8,2.48154257]
[1768283230814,3.63560856,3137.9,3136.8,1.396]
[1768283231616,3.63560856,3137.9,3136.9,1.08554257]
[1768283232215,3.63790548,3138.3,3137.3,1.08554257]
[1768283232406,3.63790548,3138.3,3136.9,1.08554257]
[1768283234013,3.49640482,3138.1,3136.9,1.08554257]
[1768283236317,3.49640482,3138.1,3136.8,4.27698384]
[1768283236614,3.49640482,3138.1,3136.9,1.08554257]
[1768283237514,3.49640482,3138.0,3136.8,4.27798384]
[1768283238815,3.49640482,3138.0,3136.9,1.08554257]
[1768283243225,3.49640482,3138.0,3136.8,4.27798384]
[1768283243414,3.49640482,3138.0,3136.8,5.36352641]
[1768283243825,3.49640482,3138.0,3136.8,2.87898384]
[1768283244126,3.49640482,3138.0,3136.9,1.08554257]
[1768283247330,3.49640482,3138.0,3136.8,4.28198384]
[1768283247528,3.49640482,3138.0,3136.8,5.36752641]
[1768283247831,3.49640482,3138.0,3136.8,3.96452641]
[1768283248128,3.49640482,3138.0,3136.9,1.406]
[1768283253137,3.49640482,3138.0,3137.0,1.08554257]
[1768283253338,4.58383988,3138.3,3137.4,1.08513814]
[1768283253530,4.79449541,3138.2,3137.4,1.08513814]
[1768283253730,3.49640482,3138.2,3137.4,1.08513814]
[1768283256436,3.49640482,3138.2,3137.6,1.08513814]
[1768283268045,0.00229692,3138.3,3137.6,1.08513814]
[1768283268850,0.00229692,3138.3,3138.0,1.08513814]
[1768283269352,0.00229692,3138.3,3137.8,1.08513814]
[1768283270849,0.00229692,3138.3,3137.7,1.08513814]
[1768283271049,0.00229692,3138.3,3137.6,1.08513814]
[1768283272354,0.00229692,3138.3,3137.8,1.08513814]
[1768283273049,3.03628545,3138.5,3138.0,1.08513814]
[1768283273253,6.475,3139.7,3137.1,3.30433448]
[1768283273254,1.397,3139.0,3137.1,3.30433448]
[1768283273452,1.08513814,3138.7,3137.9,1.08513814]
[1768283274146,1.08884652,3138.7,3137.9,1.08513814]
[1768283274658,0.00370838,3138.7,3138.4,1.08513814]
[1768283274857,0.00370838,3138.7,3138.4,0.00325534]
[1768283278352,0.00370838,3138.7,3137.9,1.08513814]
[1768283278554,1.08513814,3138.3,3137.2,0.15956]
[1768283278758,1.08513814,3137.6,3136.9,2.87898384]
[1768283278957,1.08513814,3137.9,3137.0,1.08513814]
[1768283279255,3.2227393,3138.1,3137.0,1.08513814]
[1768283279256,4.30787744,3138.1,3137.0,1.08513814]
[1768283279457,4.30787744,3138.1,3137.2,1.08513814]
[1768283279961,3.2227393,3138.1,3137.2,1.08513814]
[1768283280152,3.2227393,3138.1,3137.4,1.08513814]
[1768283280554,3.2227393,3138.5,3137.8,1.08513814]
[1768283280953,3.2227393,3138.5,3137.6,1.08513814]
[1768283281459,1.08513814,3138.4,3137.6,1.08513814]
[1768283284866,1.08513814,3138.4,3137.4,1.08513814]
[1768283286162,3.2227393,3138.5,3137.4,1.08513814]
[1768283286368,4.30787744,3138.5,3137.6,1.08513814]
[1768283289372,3.2227393,3138.5,3137.6,1.08513814]
[1768283289573,1.08513814,3138.4,3137.6,1.08513814]
[1768283289969,3.2227393,3138.5,3137.0,2.88161988]
[1768283290176,3.2227393,3138.5,3137.5,1.08513814]
[1768283290177,1.08513814,3138.4,3137.5,1.08513814]
[1768283291476,1.08513814,3138.4,3137.1,1.411]
[1768283291677,1.08513814,3138.4,3137.5,1.08513814]
[1768283291979,1.08513814,3138.4,3137.1,1.411]
[1768283292274,1.08513814,3138.4,3137.5,1.08513814]
[1768283294781,3.2227393,3138.5,3137.5,1.08513814]
[1768283294983,1.08513814,3138.4,3137.5,1.08513814]
[1768283295682,3.2227393,3138.5,3137.5,1.08513814]
[1768283295883,4.30787744,3138.5,3137.5,1.08513814]
[1768283296083,3.2227393,3138.5,3137.7,1.08513814]
[1768283296284,1.08884652,3138.7,3137.7,1.08513814]
[1768283298394,1.08513814,3138.6,3137.7,1.08513814]
[1768283298791,0.00370838,3138.7,3137.7,1.08513814]
[1768283298988,1.08884652,3138.7,3137.7,1.08513814]
[1768283303099,0.00370838,3138.7,3137.7,1.08513814]
[1768283303303,1.08884652,3138.7,3137.7,1.08513814]
[1768283303702,0.00370838,3138.7,3137.7,1.08513814]
[1768283303904,1.08884652,3138.7,3137.7,2.08513814]
[1768283304097,0.00370838,3138.7,3137.9,1.08513814]
[1768283304504,0.00370838,3138.7,3138.1,1.08513814]
[1768283305198,0.00370838,3138.7,3138.3,1.08513814]
[1768283305601,4.36371714,3139.3,3138.3,1.08513814]
[1768283306399,4.36371714,3139.3,3138.5,0.00478118]
[1768283306594,4.36754616,3139.3,3138.5,0.00478118]
[1768283307301,1.08896716,3139.3,3138.5,0.00478118]
[1768283307997,1.08896716,3139.3,3138.5,1.08991932]
[1768283308604,0.00382902,3139.3,3138.5,1.08991932]
[1768283309102,0.00382902,3139.3,3138.8,1.08513814]
[1768283309293,0.00382902,3139.3,3138.6,1.08513814]
[1768283310011,0.00382902,3139.3,3138.5,0.00478118]
[1768283312407,0.00382902,3139.3,3138.6,1.08513814]
[1768283312802,0.00382902,3139.3,3138.5,0.00478118]
[1768283314704,0.00382902,3139.3,3138.6,1.08513814]
[1768283315314,0.00382902,3139.3,3138.5,0.00478118]
[1768283329716,0.00382902,3139.3,3138.5,1.08910623]
[1768283330026,0.00382902,3139.3,3138.5,0.00478118]
[1768283333316,0.00382902,3139.3,3138.5,1.08910623]
[1768283333917,0.00382902,3139.3,3138.5,0.00478118]
[1768283340931,0.00382902,3139.3,3138.5,1.08910623]
[1768283342528,3.28526304,3140.4,3139.1,1.08432505]
[1768283343631,3.28764797,3140.4,3139.1,1.08432505]
[1768283344926,0.00238493,3140.4,3139.4,1.08432505]
[1768283345126,0.00238493,3140.4,3139.4,1.08771542]
[1768283346334,0.00238493,3140.4,3139.4,0.00339037]
[1768283346524,0.00238493,3140.4,3139.5,3.21042962]
[1768283346726,1.08432505,3140.9,3139.6,1.415]
[1768283347635,1.08785322,3140.9,3139.6,1.415]
[1768283349137,0.00352817,3140.9,3139.6,1.415]
[1768283349335,1.08785322,3140.9,3139.6,1.415]
[1768283350329,0.00352817,3140.9,3139.6,1.415]
[1768283351037,1.08785322,3140.9,3139.6,1.415]
[1768283351537,1.08785322,3140.9,3139.5,3.21042962]
[1768283351735,1.08785322,3140.9,3139.6,1.415]
[1768283351938,0.00352817,3140.9,3139.8,1.08432505]
[1768283354437,0.00352817,3140.9,3140.0,1.08432505]
[1768283354642,4.05225366,3141.6,3140.2,1.08432505]
[1768283355135,2.96792861,3141.5,3140.0,3.07799118]
[1768283355341,2.96792861,3141.5,3140.6,0.00478118]
[1768283355534,4.579,3142.3,3140.6,0.00478118]
[1768283355535,2.96792861,3142.1,3140.6,0.00478118]
[1768283355836,1.08432505,3141.2,3140.6,0.00478118]
[1768283356043,4.05225366,3141.2,3140.6,0.00478118]
[1768283356241,2.96792861,3141.2,3140.6,0.00478118]
[1768283357641,4.05225366,3141.6,3140.6,0.00478118]
[1768283358140,2.96792861,3141.6,3140.6,0.00478118]
[1768283358834,1.08432505,3141.9,3140.6,0.00478118]
[1768283359743,2.96792861,3141.9,3140.6,0.00478118]
[1768283360341,0.00309454,3142.1,3141.0,1.08432505]
[1768283362942,1.08741959,3142.1,3140.7,4.16231623]
[1768283363150,0.00309454,3142.1,3140.7,4.16231623]
[1768283364048,0.00309454,3142.1,3140.7,3.07799118]
[1768283364251,0.00309454,3142.1,3140.7,4.16231623]
[1768283366951,1.08432505,3141.7,3140.6,0.00478118]
[1768283367150,4.05225366,3141.7,3140.6,0.00478118]
[1768283368957,2.97102315,3142.1,3140.6,1.08910623]
[1768283369151,2.97102315,3142.1,3140.6,4.16709741]
[1768283369948,2.97102315,3142.1,3140.9,1.08432505]
[1768283370154,4.05225366,3141.7,3140.6,0.00478118]
[1768283371851,2.96792861,3141.7,3140.6,0.00478118]
[1768283374958,4.05225366,3141.7,3140.6,0.00478118]
[1768283375560,1.08295688,3141.6,3140.6,1.08773806]
[1768283376164,1.08295688,3141.6,3140.6,0.00478118]
[1768283376356,1.08295688,3141.4,3140.6,0.00478118]
[1768283377657,1.08295688,3141.6,3140.7,1.08295688]
[1768283377965,2.96792861,3141.7,3140.7,1.08295688]
[1768283378151,1.08295688,3141.6,3140.7,1.08295688]
[1768283378559,1.08295688,3141.6,3140.6,0.00478118]
[1768283378762,1.08295688,3141.6,3140.7,1.08295688]
[1768283380056,2.96792861,3141.7,3140.7,1.08295688]
[1768283380248,1.08295688,3141.9,3140.9,1.08295688]
[1768283380454,1.08295688,3142.0,3141.1,1.08295688]
[1768283380960,3.15477816,3142.1,3141.1,1.08295688]
[1768283381163,1.08295688,3142.0,3141.1,1.08295688]
[1768283381961,0.00309454,3142.1,3141.3,1.08295688]
[1768283384757,0.00309454,3142.1,3141.1,1.08295688]
[1768283385151,0.00309454,3142.1,3141.4,1.08295688]
[1768283386266,1.08295688,3141.9,3140.8,0.15938]
[1768283386457,1.08295688,3141.7,3140.8,1.24233688]
[1768283386761,3.15477816,3142.1,3140.8,0.15938]
[1768283386954,1.08295688,3141.5,3140.8,0.15938]
[1768283387158,1.08295688,3141.7,3140.8,1.24233688]
[1768283389159,3.15477816,3142.1,3141.0,1.08295688]
[1768283389463,1.94947173,3142.0,3141.0,1.08295688]
[1768283389653,1.08295688,3141.8,3141.0,1.08295688]
[1768283389852,1.08295688,3141.6,3140.8,0.15938]
[1768283390063,1.08295688,3141.6,3140.6,0.00478118]
[1768283390064,1.08295688,3141.4,3140.6,0.00478118]
[1768283390551,1.08295688,3141.6,3140.7,1.08295688]
[1768283390963,4.2346405,3141.8,3140.7,1.08295688]
[1768283391152,1.08295688,3141.8,3140.9,1.08295688]
[1768283392064,0.00309454,3142.1,3141.1,1.08295688]
[1768283392266,0.86658262,3142.0,3141.1,1.08295688]
[1768283392567,1.08295688,3142.0,3140.6,0.00478118]
[1768283392867,1.08295688,3141.8,3140.9,1.08295688]
[1768283393066,3.15477816,3142.1,3141.1,1.08295688]
[1768283393269,1.94954925,3142.0,3140.9,1.08295688]
[1768283393478,1.08295688,3142.0,3140.9,1.08295688]
[1768283393958,1.08295688,3142.0,3140.9,1.06295688]
[1768283395768,1.08295688,3142.0,3141.1,1.08295688]
[1768283398074,3.15477816,3142.1,3141.1,1.08295688]
[1768283398272,1.08295688,3142.0,3141.1,1.08295688]
[1768283398770,0.00309454,3142.1,3141.1,1.08295688]
[1768283398969,1.08295688,3142.0,3141.1,1.08295688]
[1768283399170,0.00309454,3142.1,3141.1,1.08295688]
[1768283399368,1.08295688,3142.0,3141.1,1.08295688]
[1768283400366,1.08295688,3142.0,3140.9,1.08295688]
[1768283400573,1.08295688,3141.6,3140.8,0.15938]
[1768283401276,0.00309454,3142.1,3141.3,1.08295688]
[1768283401476,1.08605142,3142.1,3141.1,1.08295688]
[1768283402066,1.08295688,3141.9,3141.0,1.08295688]
[1768283403172,0.00309454,3142.1,3141.0,1.08295688]
[1768283403367,1.08295688,3142.0,3141.0,1.08295688]
[1768283403568,1.08295688,3142.0,3140.8,0.15938]
[1768283403769,1.08295688,3142.0,3141.1,1.08295688]
[1768283404176,0.00309454,3142.1,3141.1,1.08295688]
[1768283404875,1.08295688,3142.0,3141.1,1.08295688]
[1768283405376,1.08295688,3141.9,3140.9,1.08295688]
[1768283408975,1.08295688,3141.9,3141.0,1.08295688]
[1768283410174,3.00799072,3142.1,3141.0,1.08295688]
[1768283410377,1.94664587,3142.0,3141.0,1.08295688]
[1768283410571,1.08295688,3142.0,3141.0,1.08295688]
[1768283414178,1.08295688,3141.8,3141.0,1.08295688]
[1768283414378,1.08295688,3141.9,3140.8,1.24233688]
[1768283414579,1.08295688,3141.9,3141.0,1.08295688]
[1768283414773,4.05804483,3141.9,3141.0,1.08295688]
[1768283416383,4.05804483,3141.9,3140.8,0.15938]
[1768283416573,4.05804483,3141.9,3141.0,1.08295688]
[1768283416774,4.05804483,3141.9,3140.8,0.15938]
[1768283417081,4.05804483,3141.9,3140.8,1.24233688]
[1768283417378,1.08295688,3141.7,3140.8,0.15938]
[1768283417585,1.08295688,3141.5,3140.8,0.15938]
[1768283418786,1.08295688,3141.8,3140.8,0.15938]
[1768283419977,4.05804483,3141.8,3140.8,1.24233688]
[1768283420480,4.05804483,3141.8,3140.8,0.15938]
[1768283420686,1.08295688,3141.6,3140.8,0.15938]
[1768283421784,2.97508795,3141.8,3140.8,0.15938]
[1768283421992,1.08295688,3141.6,3140.8,0.15938]
[1768283422574,4.05804483,3141.4,3140.6,0.00478118]
[1768283423482,1.08295688,3141.2,3140.6,0.00478118]
[1768283423780,1.08295688,3141.0,3140.1,1.24236688]
[1768283426187,4.05804483,3141.1,3140.1,1.24236688]
[1768283426388,2.97508795,3141.1,3140.3,1.08295688]
[1768283426688,2.97508795,3141.1,3140.2,1.08295688]
[1768283426889,1.08295688,3141.0,3140.1,0.15941]
[1768283428283,1.08295688,3140.8,3139.9,1.08295688]
[1768283429286,1.08295688,3140.8,3139.6,2.414]
[1768283429486,1.08295688,3140.8,3140.0,1.08295688]
[1768283430690,1.08295688,3140.6,3139.6,2.08295688]
[1768283431187,1.08295688,3140.7,3139.8,1.08295688]
[1768283432090,1.08295688,3140.7,3139.7,1.08295688]
[1768283433083,2.97508795,3140.9,3139.9,1.08295688]
[1768283433390,1.08295688,3140.7,3139.8,1.08295688]
[1768283435495,4.05804483,3140.9,3140.0,1.08295688]
[1768283435684,4.05804483,3140.9,3139.9,1.08295688]
[1768283437289,2.97508795,3140.9,3139.7,1.08342623]
[1768283438290,2.97508795,3140.9,3139.5,0.15945]
[1768283438498,2.92533007,3140.7,3139.5,0.15945]
[1768283439596,2.92533007,3140.7,3139.4,0.00339037]
[1768283439898,2.92533007,3140.4,3139.4,0.00339037]
[1768283441490,2.92533007,3140.3,3139.4,0.00339037]
[1768283443202,2.92533007,3139.4,3138.0,1.0]
[1768283443392,1.08342623,3138.4,3137.3,3.03333682]
[1768283443595,1.08342623,3138.7,3137.3,3.03333682]
[1768283444089,1.0873852,3138.7,3137.3,3.03736862]
[1768283444287,1.0873852,3138.7,3137.6,3.03333682]
[1768283444288,0.00395897,3138.7,3137.6,3.03333682]
[1768283444589,0.00395897,3138.7,3137.8,4.11676305]
[1768283444787,0.00395897,3138.7,3137.8,3.03333682]
[1768283449405,0.00395897,3138.7,3138.0,1.08342623]
[1768283452412,0.00395897,3138.7,3137.8,3.03333682]
[1768283454502,1.00395897,3138.7,3137.8,3.03333682]
[1768283454707,1.00395897,3138.7,3137.3,3.19692862]
[1768283454905,1.00395897,3138.7,3137.6,3.03333682]
[1768283455810,1.00395897,3138.7,3137.8,4.11676305]
[1768283460417,1.00395897,3138.7,3138.1,1.08342623]
[1768283460617,1.00395897,3138.7,3137.5,4.11676305]
[1768283460821,1.00395897,3138.7,3137.6,3.03333682]
[1768283461222,1.00395897,3138.7,3137.8,4.11676305]
[1768283461414,1.00395897,3138.7,3138.0,1.08342623]
[1768283462216,1.00395897,3138.7,3138.0,4.11676305]
[1768283467242,1.00395897,3138.7,3135.8,2.99925938]
[1768283467243,3.03018272,3138.0,3135.8,2.99925938]
[1768283467429,1.08342623,3138.6,3135.9,3.15888938]
[1768283467430,3.03018272,3137.7,3135.9,3.15888938]
[1768283467727,1.08342623,3137.2,3135.9,3.15888938]
[1768283467925,1.386,3137.9,3136.2,2.99925938]
[1768283468129,0.90497455,3137.8,3136.4,1.08342623]
[1768283468333,0.90497455,3137.7,3136.4,4.08677577]
[1768283468531,2.46942623,3137.9,3136.4,4.08677577]
[1768283468732,0.00478118,3137.4,3136.4,4.08677577]
[1768283470333,0.00478118,3137.4,3136.7,4.08268561]
[1768283471430,0.00478118,3137.4,3136.4,0.00409016]
[1768283473129,0.00478118,3137.4,3135.6,1.08342623]
[1768283473130,1.08342623,3136.9,3135.8,2.99925938]
[1768283473738,4.11839013,3137.4,3135.8,2.99925938]
[1768283474036,4.11839013,3137.4,3135.8,4.08268561]
[1768283474342,4.11839013,3137.4,3135.8,4.08502524]
[1768283476430,4.11839013,3137.4,3135.8,3.00159901]
[1768283476733,4.11839013,3137.4,3135.8,4.08502524]
[1768283477239,3.0349639,3137.4,3135.8,4.08502524]
[1768283477438,1.08342623,3137.3,3135.8,4.08502524]
[1768283477735,1.08342623,3137.3,3135.8,3.00159901]
[1768283477938,1.08342623,3137.0,3135.8,3.00159901]
[1768283479430,4.11839013,3137.4,3135.8,3.00159901]
[1768283479625,1.08342623,3137.1,3135.8,0.00233963]
[1768283479938,4.25005963,3137.1,3135.8,0.00233963]
[1768283480437,3.1666334,3137.1,3135.8,1.08576586]
[1768283481039,1.08342623,3136.2,3134.1,2.97622464]
[1768283481234,3.1666334,3136.1,3133.3,1.413]
[1768283481434,1.08342623,3135.5,3134.1,1.08342623]
[1768283481627,1.08342623,3135.8,3134.4,1.08342623]
[1768283481936,5.63705963,3136.5,3135.0,1.08342623]
[1768283482141,0.89798393,3136.4,3135.0,0.00236142]
[1768283482329,5.64017752,3136.5,3135.0,0.00236142]
[1768283482539,1.08342623,3135.5,3134.2,1.08342623]
[1768283482841,1.08342623,3135.8,3134.3,1.08342623]
[1768283483342,3.1666334,3136.1,3134.2,2.97622464]
[1768283483542,3.1666334,3136.1,3134.2,2.97937176]
[1768283484133,1.387,3136.4,3134.3,2.97622464]
[1768283484335,3.16975129,3136.5,3134.3,2.97622464]
[1768283484733,0.00311789,3136.5,3134.7,2.97622464]
[1768283487140,3.16975129,3136.5,3134.7,2.97622464]
[1768283490546,3.1666334,3136.4,3134.3,3.13593464]
[1768283491249,3.1666334,3136.2,3134.3,3.13593464]
[1768283496151,0.89751561,3136.1,3134.3,3.13593464]
[1768283496352,3.1666334,3136.2,3134.3,3.13593464]
[1768283496552,4.10039229,3136.1,3134.3,3.13593464]
[1768283496743,3.20287651,3136.1,3134.3,3.13593464]
[1768283497145,0.89868194,3136.0,3134.3,3.13593464]
[1768283497346,3.20287651,3136.1,3134.3,3.13593464]
[1768283497550,4.10155864,3136.0,3134.3,2.97622464]
[1768283497752,0.89868213,3135.9,3134.3,2.97622464]
[1768283499142,1.39,3136.3,3134.3,2.97622464]
[1768283499344,2.36618096,3136.2,3134.4,3.08568672]
[1768283499546,0.89879852,3136.1,3134.4,3.08568672]
[1768283501357,1.46738244,3135.9,3134.4,3.08568672]
[1768283501555,0.89879852,3135.8,3134.4,3.08568672]
[1768283502159,0.89879852,3135.8,3134.2,0.00314712]
[1768283502160,1.46738244,3135.6,3134.2,0.00314712]
[1768283502458,0.89961927,3135.5,3134.2,0.00314712]
[1768283502754,4.67025895,3135.3,3134.2,0.00314712]
[1768283502959,1.46738244,3134.7,3133.5,3.08568672]
[1768283503253,1.46738244,3135.0,3133.5,3.08568672]
[1768283503656,0.89981975,3134.9,3133.5,3.08568672]
[1768283503854,0.89981975,3134.8,3133.5,3.08568672]
[1768283504054,1.46738244,3135.0,3133.5,3.0897041]
[1768283504258,0.89963817,3134.9,3133.5,3.0897041]
[1768283504455,0.89963817,3134.8,3133.5,0.00401738]
[1768283504654,1.46738244,3134.9,3133.5,0.00401738]
[1768283504854,0.89965917,3134.8,3133.5,0.00401738]
[1768283505054,1.46738244,3134.9,3133.5,0.00401738]
[1768283505254,0.89954076,3134.8,3133.5,0.00401738]
[1768283505460,1.08783054,3134.5,3133.5,1.09184792]
[1768283506662,1.08783054,3134.3,3133.5,1.09184792]
[1768283506968,1.09122343,3134.3,3133.5,0.00401738]
[1768283507163,1.09122343,3134.3,3133.5,1.09184792]
[1768283507367,1.08783054,3134.9,3134.0,3.08568672]
[1768283507569,1.393,3135.2,3134.0,3.08568672]
[1768283507757,1.08783054,3135.0,3134.0,3.08568672]
[1768283508254,2.48083054,3135.2,3134.2,4.17351726]
[1768283508456,2.48381653,3135.2,3134.2,3.08568672]
[1768283508858,1.39598599,3135.2,3134.2,3.08568672]
[1768283509168,1.08783054,3135.0,3134.0,1.08783054]
[1768283509958,1.08783054,3134.9,3134.0,1.08783054]
[1768283510867,1.08783054,3134.9,3133.9,1.08783054]
[1768283511770,1.08783054,3134.9,3133.8,4.17351726]
[1768283512070,1.39598599,3135.2,3134.0,4.17351726]
[1768283512263,1.08783054,3134.9,3134.0,4.17351726]
[1768283512870,1.08783054,3135.0,3134.1,3.08568672]
[1768283513080,1.39598599,3135.2,3134.2,1.08783054]
[1768283513371,0.89797366,3135.1,3134.2,1.08783054]
[1768283513567,2.48381653,3135.2,3134.2,1.08783054]
[1768283513769,0.89797322,3135.1,3134.1,3.08568672]
[1768283513965,2.48381653,3135.2,3134.1,3.08568672]
[1768283513966,2.48381653,3135.2,3134.1,4.17351726]
[1768283514266,0.00298599,3135.2,3134.6,4.17351726]
[1768283514466,0.00298599,3135.2,3134.6,3.08568672]
[1768283514667,1.0,3135.5,3134.6,4.17351726]
[1768283514971,1.98538374,3135.4,3134.6,3.08568672]
[1768283515172,0.89768766,3135.3,3134.6,3.08568672]
[1768283515472,1.08783054,3135.4,3134.6,3.08568672]
[1768283515672,1.09046396,3135.4,3134.6,3.08568672]
[1768283517065,0.89090409,3135.3,3134.6,3.08568672]
[1768283517269,1.09046396,3135.4,3134.6,3.08568672]
[1768283517575,0.89090409,3135.3,3134.6,3.08568672]
[1768283517776,1.09046396,3135.4,3134.6,3.08568672]
[1768283517978,0.89090435,3135.3,3134.6,3.08568672]